[Event "*** SCC Grand Prix: Titled Tuesday Blitz"]
[Site "Chess.com"]
[Date "2020.09.29"]
[Round "2"]
[White "Konavets"]
[Black "stanyga"]
[Result "1-0"]
[WhiteElo "2985"]
[BlackElo "2602"]
[TimeControl "180+1"]
[EndTime "10:16:31 PDT"]
[Termination "Konavets won by checkmate"]

1. d4 {[%clk 0:03:00.9]} 1... Nf6 {[%clk 0:02:59.3]} 2. Nf3 {[%clk 0:03:01.2]}
2... g6 {[%clk 0:02:58]} 3. c4 {[%clk 0:03:01.8]} 3... Bg7 {[%clk 0:02:57.4]} 4.
Nc3 {[%clk 0:03:02.4]} 4... d5 {[%clk 0:02:57.1]} 5. cxd5 {[%clk 0:03:03.3]}
5... Nxd5 {[%clk 0:02:57]} 6. e4 {[%clk 0:03:04.2]} 6... Nxc3 {[%clk 0:02:56.9]}
7. bxc3 {[%clk 0:03:05.1]} 7... c5 {[%clk 0:02:56.8]} 8. Rb1 {[%clk 0:03:06]}
8... O-O {[%clk 0:02:50.5]} 9. Be2 {[%clk 0:03:06.1]} 9... Qa5 {[%clk
0:02:45.5]} 10. Bd2 {[%clk 0:03:04.5]} 10... b6 {[%clk 0:02:21]} 11. O-O {[%clk
0:03:02.2]} 11... Nd7 {[%clk 0:02:05.4]} 12. a4 {[%clk 0:03:00.3]} 12... Nf6
{[%clk 0:01:29.9]} 13. Ng5 {[%clk 0:02:25.4]} 13... h6 {[%clk 0:01:25.4]} 14.
Bb5 {[%clk 0:02:25.6]} 14... c4 {[%clk 0:01:23.2]} 15. e5 {[%clk 0:02:16.9]}
15... hxg5 {[%clk 0:01:19.9]} 16. exf6 {[%clk 0:02:15.9]} 16... Bxf6 {[%clk
0:01:19.5]} 17. Bxc4 {[%clk 0:02:16.3]} 17... Bd7 {[%clk 0:01:18.4]} 18. Rb5
{[%clk 0:02:12.2]} 18... Bxb5 {[%clk 0:01:17.2]} 19. Bxb5 {[%clk 0:02:12.3]}
19... Rfd8 {[%clk 0:01:09.4]} 20. Qe2 {[%clk 0:02:09.8]} 20... a6 {[%clk
0:01:06.5]} 21. c4 {[%clk 0:02:09.2]} 21... Qxd2 {[%clk 0:01:05.8]} 22. Qxd2
{[%clk 0:02:08.1]} 22... Rxd4 {[%clk 0:01:06.2]} 23. Qe2 {[%clk 0:02:04.8]}
23... axb5 {[%clk 0:01:05.9]} 24. axb5 {[%clk 0:02:05.7]} 24... Ra4 {[%clk
0:01:05.1]} 25. Rc1 {[%clk 0:02:05.4]} 25... Rb4 {[%clk 0:01:04]} 26. h3 {[%clk
0:02:02.3]} 26... Kg7 {[%clk 0:01:03.6]} 27. g3 {[%clk 0:02:00.4]} 27... e6
{[%clk 0:01:02.8]} 28. Kg2 {[%clk 0:02:00.7]} 28... Rd8 {[%clk 0:01:01.4]} 29.
Rc2 {[%clk 0:01:57.5]} 29... Rb1 {[%clk 0:01:00.8]} 30. Rd2 {[%clk 0:01:55.3]}
30... Rxd2 {[%clk 0:00:55.1]} 31. Qxd2 {[%clk 0:01:56.2]} 31... Rb2 {[%clk
0:00:55.2]} 32. Qd6 {[%clk 0:01:54.9]} 32... Rc2 {[%clk 0:00:51.4]} 33. Qxb6
{[%clk 0:01:48.3]} 33... Rxc4 {[%clk 0:00:51]} 34. Qa6 {[%clk 0:01:48.9]} 34...
Bd4 {[%clk 0:00:47.7]} 35. b6 {[%clk 0:01:48.6]} 35... Rc2 {[%clk 0:00:47.6]}
36. b7 {[%clk 0:01:36.6]} 36... Rxf2+ {[%clk 0:00:46.8]} 37. Kh1 {[%clk
0:01:37]} 37... Rb2 {[%clk 0:00:44.2]} 38. Qd6 {[%clk 0:01:36.9]} 38... Rb1+
{[%clk 0:00:41.8]} 39. Kg2 {[%clk 0:01:36.6]} 39... Rb2+ {[%clk 0:00:40]} 40.
Kf1 {[%clk 0:01:34]} 40... Rxb7 {[%clk 0:00:37.9]} 41. Qxd4+ {[%clk 0:01:33.5]}
41... f6 {[%clk 0:00:37.2]} 42. Qe4 {[%clk 0:01:32.2]} 42... Re7 {[%clk
0:00:34.3]} 43. Ke2 {[%clk 0:01:30.3]} 43... e5 {[%clk 0:00:33.9]} 44. Kf3
{[%clk 0:01:30.4]} 44... Rd7 {[%clk 0:00:33.6]} 45. Qc6 {[%clk 0:01:25.2]} 45...
Rd3+ {[%clk 0:00:32.7]} 46. Kf2 {[%clk 0:01:25.4]} 46... Rd2+ {[%clk 0:00:32.5]}
47. Ke3 {[%clk 0:01:25.2]} 47... Rd4 {[%clk 0:00:32.7]} 48. Qe6 {[%clk
0:01:25.3]} 48... g4 {[%clk 0:00:28.6]} 49. h4 {[%clk 0:01:18.9]} 49... Rd1
{[%clk 0:00:18.8]} 50. Qe7+ {[%clk 0:01:18.6]} 50... Kh6 {[%clk 0:00:18.8]} 51.
Qxf6 {[%clk 0:01:18.9]} 51... Re1+ {[%clk 0:00:19.2]} 52. Kd2 {[%clk 0:01:19]}
52... Re4 {[%clk 0:00:19.3]} 53. Qh8# {[%clk 0:01:19.2]} 1-0

[Event "*** SCC Grand Prix: Titled Tuesday Blitz"]
[Site "Chess.com"]
[Date "2020.09.29"]
[Round "2"]
[White "Witik"]
[Black "DanielTitichoca"]
[Result "1-0"]
[WhiteElo "2675"]
[BlackElo "2376"]
[TimeControl "180+1"]
[EndTime "10:16:33 PDT"]
[Termination "Witik won by checkmate"]

1. d4 {[%clk 0:03:00.9]} 1... Nf6 {[%clk 0:02:55.2]} 2. c4 {[%clk 0:02:59.7]}
2... g6 {[%clk 0:02:53.3]} 3. Nc3 {[%clk 0:02:59.6]} 3... Bg7 {[%clk 0:02:54.2]}
4. e4 {[%clk 0:02:59.6]} 4... O-O {[%clk 0:02:55.1]} 5. f3 {[%clk 0:02:56.6]}
5... d6 {[%clk 0:02:54.6]} 6. Be3 {[%clk 0:02:56.8]} 6... c5 {[%clk 0:02:52.9]}
7. Nge2 {[%clk 0:02:53.4]} 7... cxd4 {[%clk 0:02:52.2]} 8. Nxd4 {[%clk
0:02:53.3]} 8... Nc6 {[%clk 0:02:53.1]} 9. Nc2 {[%clk 0:02:50.6]} 9... Nd7
{[%clk 0:02:48.4]} 10. Be2 {[%clk 0:02:50.1]} 10... a5 {[%clk 0:02:44.6]} 11.
O-O {[%clk 0:02:49.7]} 11... a4 {[%clk 0:02:44.5]} 12. Na3 {[%clk 0:02:42.5]}
12... Nc5 {[%clk 0:02:41.7]} 13. Rc1 {[%clk 0:02:38.1]} 13... f5 {[%clk
0:02:26]} 14. exf5 {[%clk 0:02:37.7]} 14... Bxf5 {[%clk 0:02:10.5]} 15. Nab5
{[%clk 0:02:33.2]} 15... Kh8 {[%clk 0:01:53]} 16. Kh1 {[%clk 0:02:32.4]} 16...
Nb4 {[%clk 0:01:40.9]} 17. Qd2 {[%clk 0:02:27.1]} 17... Nbd3 {[%clk 0:01:33.4]}
18. Rcd1 {[%clk 0:02:25.7]} 18... Qa5 {[%clk 0:01:23.2]} 19. g4 {[%clk
0:02:12.8]} 19... a3 {[%clk 0:00:58.2]} 20. gxf5 {[%clk 0:02:10.3]} 20... Nxb2
{[%clk 0:00:54.6]} 21. fxg6 {[%clk 0:01:42.8]} 21... hxg6 {[%clk 0:00:50]} 22.
Rc1 {[%clk 0:01:39.1]} 22... Qb4 {[%clk 0:00:46.5]} 23. Qc2 {[%clk 0:01:24.4]}
23... Nxc4 {[%clk 0:00:44.3]} 24. Qxg6 {[%clk 0:01:06.8]} 24... Nxe3 {[%clk
0:00:42.4]} 25. Rg1 {[%clk 0:01:06.9]} 25... Nf5 {[%clk 0:00:34.2]} 26. Rg4
{[%clk 0:00:49.2]} 26... Qb2 {[%clk 0:00:25.5]} 27. Rcg1 {[%clk 0:00:48.7]}
27... Qd2 {[%clk 0:00:20.5]} 28. Rh4+ {[%clk 0:00:45]} 28... Bh6 {[%clk
0:00:18.2]} 29. f4 {[%clk 0:00:38.8]} 29... Rg8 {[%clk 0:00:11.7]} 30. Rxh6+
{[%clk 0:00:38.5]} 30... Nxh6 {[%clk 0:00:06.6]} 31. Qxh6# {[%clk 0:00:38.6]}
1-0

[Event "*** SCC Grand Prix: Titled Tuesday Blitz"]
[Site "Chess.com"]
[Date "2020.09.29"]
[Round "2"]
[White "GMaka"]
[Black "Trovita84"]
[Result "1-0"]
[WhiteElo "2369"]
[BlackElo "1976"]
[TimeControl "180+1"]
[EndTime "10:16:33 PDT"]
[Termination "GMaka won by resignation"]

1. e4 {[%clk 0:03:00.9]} 1... e5 {[%clk 0:02:58.7]} 2. Nc3 {[%clk 0:03:00.5]}
2... Nf6 {[%clk 0:02:55.8]} 3. Bc4 {[%clk 0:03:00.5]} 3... Be7 {[%clk
0:02:53.6]} 4. Nge2 {[%clk 0:02:51.1]} 4... O-O {[%clk 0:02:52.8]} 5. d3 {[%clk
0:02:50.8]} 5... c6 {[%clk 0:02:49.7]} 6. O-O {[%clk 0:02:50.4]} 6... d5 {[%clk
0:02:49.5]} 7. Bb3 {[%clk 0:02:51]} 7... dxe4 {[%clk 0:02:45.4]} 8. dxe4 {[%clk
0:02:49.2]} 8... Bg4 {[%clk 0:02:42.8]} 9. f3 {[%clk 0:02:17.8]} 9... Bh5 {[%clk
0:02:39.2]} 10. Qxd8 {[%clk 0:02:15.2]} 10... Rxd8 {[%clk 0:02:38.5]} 11. Be3
{[%clk 0:02:16.1]} 11... Nbd7 {[%clk 0:02:37.7]} 12. Ng3 {[%clk 0:02:13.1]}
12... Bg6 {[%clk 0:02:36.6]} 13. Nf5 {[%clk 0:02:13.3]} 13... Bxf5 {[%clk
0:02:36.3]} 14. exf5 {[%clk 0:02:14.2]} 14... Bc5 {[%clk 0:02:34.7]} 15. Kf2
{[%clk 0:02:08.6]} 15... Bxe3+ {[%clk 0:02:33.3]} 16. Kxe3 {[%clk 0:02:09.5]}
16... Nb6 {[%clk 0:02:32]} 17. Rad1 {[%clk 0:02:03.9]} 17... Nbd5+ {[%clk
0:02:25.8]} 18. Nxd5 {[%clk 0:02:03.8]} 18... Nxd5+ {[%clk 0:02:25.6]} 19. Kf2
{[%clk 0:01:59]} 19... Kf8 {[%clk 0:02:23.3]} 20. Rfe1 {[%clk 0:01:58.3]} 20...
f6 {[%clk 0:02:23.4]} 21. g3 {[%clk 0:01:54.4]} 21... a5 {[%clk 0:02:18]} 22. a3
{[%clk 0:01:51.9]} 22... a4 {[%clk 0:02:17.5]} 23. Ba2 {[%clk 0:01:51.4]} 23...
b5 {[%clk 0:02:16.1]} 24. f4 {[%clk 0:01:28.2]} 24... exf4 {[%clk 0:02:12.9]}
25. Bxd5 {[%clk 0:01:21]} 25... fxg3+ {[%clk 0:02:12.2]} 26. hxg3 {[%clk
0:01:21.9]} 26... cxd5 {[%clk 0:02:09.9]} 27. Re6 {[%clk 0:01:20.3]} 27... Rac8
{[%clk 0:02:06.9]} 28. c3 {[%clk 0:01:20.2]} 28... d4 {[%clk 0:02:06.7]} 29.
cxd4 {[%clk 0:01:03.4]} 29... Rc2+ {[%clk 0:02:05]} 30. Re2 {[%clk 0:01:03.9]}
30... Rdc8 {[%clk 0:02:04.7]} 31. Rdd2 {[%clk 0:00:57.7]} 31... Rxd2 {[%clk
0:02:03.8]} 32. Rxd2 {[%clk 0:00:57.6]} 32... Ke7 {[%clk 0:02:04.7]} 33. Ke3
{[%clk 0:00:50.5]} 33... Kd6 {[%clk 0:02:04.7]} 34. g4 {[%clk 0:00:47.5]} 34...
Rc1 {[%clk 0:02:02.3]} 35. d5 {[%clk 0:00:32.6]} 35... Rg1 {[%clk 0:01:57.7]}
36. Rd4 {[%clk 0:00:30.4]} 36... Rb1 {[%clk 0:01:56.4]} 37. Rb4 {[%clk
0:00:30.1]} 37... Kxd5 {[%clk 0:01:50.8]} 38. Rxb5+ {[%clk 0:00:30.2]} 38... Kc6
{[%clk 0:01:50.3]} 39. Rb4 {[%clk 0:00:30.2]} 39... Kc5 {[%clk 0:01:47.6]} 40.
Kf4 {[%clk 0:00:27.1]} 40... Rf1+ {[%clk 0:01:42.8]} 41. Kg3 {[%clk 0:00:27.3]}
41... Rb1 {[%clk 0:01:41.3]} 42. Rxa4 {[%clk 0:00:24.6]} 42... Rxb2 {[%clk
0:01:41]} 43. Ra7 {[%clk 0:00:25.2]} 43... Rb3+ {[%clk 0:01:39.7]} 44. Kh4
{[%clk 0:00:24]} 44... g6 {[%clk 0:01:39.6]} 45. Rxh7 {[%clk 0:00:18.1]} 45...
gxf5 {[%clk 0:01:37.7]} 46. gxf5 {[%clk 0:00:19]} 46... Rxa3 {[%clk 0:01:37.8]}
47. Kh5 {[%clk 0:00:13.3]} 47... Rh3+ {[%clk 0:01:22]} 48. Kg6 {[%clk
0:00:13.5]} 48... Rxh7 {[%clk 0:01:21.8]} 49. Kxh7 {[%clk 0:00:14.4]} 49... Kd5
{[%clk 0:01:22.2]} 50. Kg7 {[%clk 0:00:14.6]} 50... Ke5 {[%clk 0:01:22.7]} 51.
Kg6 {[%clk 0:00:15]} 51... Kd6 {[%clk 0:01:17.7]} 52. Kxf6 {[%clk 0:00:15.9]}
52... Kd7 {[%clk 0:01:18.2]} 53. Kf7 {[%clk 0:00:16.4]} 1-0

[Event "*** SCC Grand Prix: Titled Tuesday Blitz"]
[Site "Chess.com"]
[Date "2020.09.29"]
[Round "2"]
[White "slowdgehammer"]
[Black "Arjun2002"]
[Result "0-1"]
[WhiteElo "2344"]
[BlackElo "2681"]
[TimeControl "180+1"]
[EndTime "10:16:34 PDT"]
[Termination "Arjun2002 won by resignation"]

1. e4 {[%clk 0:03:00.9]} 1... c5 {[%clk 0:02:56.8]} 2. Nf3 {[%clk 0:02:53.7]}
2... d6 {[%clk 0:02:57]} 3. c3 {[%clk 0:02:49.6]} 3... Nf6 {[%clk 0:02:55.1]} 4.
Bd3 {[%clk 0:02:41.8]} 4... g6 {[%clk 0:02:46]} 5. h3 {[%clk 0:02:41.1]} 5...
Bg7 {[%clk 0:02:45.5]} 6. O-O {[%clk 0:02:41.6]} 6... O-O {[%clk 0:02:44.7]} 7.
Re1 {[%clk 0:02:42.2]} 7... Nc6 {[%clk 0:02:43.8]} 8. Bc2 {[%clk 0:02:41]} 8...
e5 {[%clk 0:02:43.7]} 9. Bb3 {[%clk 0:02:35.7]} 9... Re8 {[%clk 0:02:31.9]} 10.
a4 {[%clk 0:02:34.5]} 10... Be6 {[%clk 0:02:29.9]} 11. d3 {[%clk 0:02:34.3]}
11... h6 {[%clk 0:02:29.3]} 12. Nbd2 {[%clk 0:02:31.6]} 12... d5 {[%clk
0:02:24.3]} 13. exd5 {[%clk 0:02:24.7]} 13... Nxd5 {[%clk 0:02:24.4]} 14. Nc4
{[%clk 0:02:23.9]} 14... Qc7 {[%clk 0:02:22.4]} 15. Qe2 {[%clk 0:02:22.7]} 15...
f6 {[%clk 0:02:20.1]} 16. Bd2 {[%clk 0:02:19.8]} 16... Rad8 {[%clk 0:02:19.9]}
17. Rad1 {[%clk 0:02:18.5]} 17... Bf7 {[%clk 0:02:19.8]} 18. Bc1 {[%clk
0:02:18.4]} 18... Kh7 {[%clk 0:02:19.4]} 19. Qc2 {[%clk 0:02:18]} 19... b6
{[%clk 0:02:15.5]} 20. Ne3 {[%clk 0:02:16.2]} 20... Nf4 {[%clk 0:02:04.2]} 21.
Nc4 {[%clk 0:02:09]} 21... Ne6 {[%clk 0:01:59.8]} 22. Ba2 {[%clk 0:01:59.5]}
22... Qc8 {[%clk 0:01:58.6]} 23. Bb1 {[%clk 0:01:57]} 23... Rd7 {[%clk
0:01:55.8]} 24. Nh4 {[%clk 0:01:53.8]} 24... Nf8 {[%clk 0:01:53.2]} 25. Qb3
{[%clk 0:01:50.2]} 25... Na5 {[%clk 0:01:48.9]} 26. Qa2 {[%clk 0:01:48.4]} 26...
Nxc4 {[%clk 0:01:46]} 27. dxc4 {[%clk 0:01:46.7]} 27... Rxd1 {[%clk 0:01:45.8]}
28. Rxd1 {[%clk 0:01:46.5]} 28... Rd8 {[%clk 0:01:46.7]} 29. Re1 {[%clk
0:01:46.4]} 29... f5 {[%clk 0:01:31.8]} 30. b3 {[%clk 0:01:44.1]} 30... e4
{[%clk 0:01:31.2]} 31. Qc2 {[%clk 0:01:43.5]} 31... g5 {[%clk 0:01:22.6]} 32.
Nxf5 {[%clk 0:01:18]} 32... Qxf5 {[%clk 0:01:21.4]} 33. Qe2 {[%clk 0:01:04.9]}
33... Bg6 {[%clk 0:01:18.2]} 34. Bd2 {[%clk 0:01:02.5]} 34... Ne6 {[%clk
0:01:15]} 35. g4 {[%clk 0:00:58]} 35... Qe5 {[%clk 0:01:12.4]} 36. Kg2 {[%clk
0:00:39.8]} 36... Nf4+ {[%clk 0:00:52.9]} 37. Bxf4 {[%clk 0:00:39.3]} 37... Qxf4
{[%clk 0:00:53.2]} 38. Bxe4 {[%clk 0:00:33.8]} 38... Qxe4+ {[%clk 0:00:52.4]}
39. Qxe4 {[%clk 0:00:34.7]} 39... Bxe4+ {[%clk 0:00:53]} 40. Rxe4 {[%clk
0:00:35.4]} 40... Rd3 {[%clk 0:00:53.6]} 41. Re7 {[%clk 0:00:33.4]} 41... Rxc3
{[%clk 0:00:53.8]} 42. Rxa7 {[%clk 0:00:32.9]} 42... Rxb3 {[%clk 0:00:54]} 43.
Rb7 {[%clk 0:00:29]} 43... Rb4 {[%clk 0:00:53.7]} 44. Kf3 {[%clk 0:00:25.9]}
44... Rxa4 {[%clk 0:00:53.6]} 0-1

[Event "*** SCC Grand Prix: Titled Tuesday Blitz"]
[Site "Chess.com"]
[Date "2020.09.29"]
[Round "2"]
[White "abfchess"]
[Black "ChelsieMonica"]
[Result "1-0"]
[WhiteElo "2101"]
[BlackElo "2371"]
[TimeControl "180+1"]
[EndTime "10:16:36 PDT"]
[Termination "abfchess won by checkmate"]

1. d4 {[%clk 0:03:00.9]} 1... Nf6 {[%clk 0:02:56.5]} 2. Nf3 {[%clk 0:03:00.9]}
2... g6 {[%clk 0:02:55.3]} 3. Bg5 {[%clk 0:03:00.8]} 3... Bg7 {[%clk 0:02:55.6]}
4. Nbd2 {[%clk 0:03:00.6]} 4... h6 {[%clk 0:02:56]} 5. Bh4 {[%clk 0:03:00.1]}
5... g5 {[%clk 0:02:56.5]} 6. Bg3 {[%clk 0:03:00]} 6... h5 {[%clk 0:02:55]} 7.
Nxg5 {[%clk 0:02:54.4]} 7... h4 {[%clk 0:02:54.5]} 8. Bf4 {[%clk 0:02:54.3]}
8... c5 {[%clk 0:02:38.8]} 9. e3 {[%clk 0:02:49.2]} 9... cxd4 {[%clk 0:02:32.3]}
10. exd4 {[%clk 0:02:50.1]} 10... d5 {[%clk 0:02:26.7]} 11. c3 {[%clk
0:02:46.5]} 11... Nc6 {[%clk 0:02:25.1]} 12. Bd3 {[%clk 0:02:44.5]} 12... h3
{[%clk 0:02:23.7]} 13. g3 {[%clk 0:02:40.9]} 13... Bg4 {[%clk 0:02:16.4]} 14.
Qb3 {[%clk 0:02:40]} 14... Na5 {[%clk 0:02:00.5]} 15. Qa4+ {[%clk 0:02:35.3]}
15... Kf8 {[%clk 0:01:58.4]} 16. Ndf3 {[%clk 0:02:23.2]} 16... Ne4 {[%clk
0:01:44.8]} 17. Nxf7 {[%clk 0:01:59.6]} 17... Kxf7 {[%clk 0:01:42.2]} 18. Bxe4
{[%clk 0:01:53]} 18... dxe4 {[%clk 0:01:41.9]} 19. Ng5+ {[%clk 0:01:53.1]} 19...
Kg6 {[%clk 0:01:41.2]} 20. Qc2 {[%clk 0:01:43.1]} 20... Qd5 {[%clk 0:01:33.9]}
21. Nxe4 {[%clk 0:01:33.7]} 21... Kh5 {[%clk 0:01:32.5]} 22. O-O {[%clk
0:01:30.2]} 22... Bh6 {[%clk 0:01:15.1]} 23. f3 {[%clk 0:01:27.4]} 23... Bf5
{[%clk 0:00:51.4]} 24. g4+ {[%clk 0:01:26.1]} 24... Kg6 {[%clk 0:00:43.2]} 25.
gxf5+ {[%clk 0:01:25.2]} 25... Kf7 {[%clk 0:00:31.5]} 26. Bxh6 {[%clk
0:01:22.2]} 26... Rxh6 {[%clk 0:00:32.4]} 27. Ng3 {[%clk 0:01:15.4]} 27... Rg8
{[%clk 0:00:32]} 28. Qe4 {[%clk 0:01:14.2]} 28... Qd6 {[%clk 0:00:31.9]} 29. Qe5
{[%clk 0:01:11.7]} 29... Qc6 {[%clk 0:00:28.6]} 30. Qxa5 {[%clk 0:01:10.3]}
30... Qd6 {[%clk 0:00:24.2]} 31. Qe5 {[%clk 0:01:10]} 31... Qc6 {[%clk
0:00:24.5]} 32. Rae1 {[%clk 0:01:05.9]} 32... Qd7 {[%clk 0:00:24.3]} 33. Kh1
{[%clk 0:01:02.5]} 33... Kf8 {[%clk 0:00:24.3]} 34. Qb8+ {[%clk 0:00:59.7]}
34... Kg7 {[%clk 0:00:22.8]} 35. Qe5+ {[%clk 0:01:00.3]} 35... Kf8 {[%clk
0:00:22.5]} 36. d5 {[%clk 0:00:58.5]} 36... Rd6 {[%clk 0:00:20.3]} 37. c4 {[%clk
0:00:55.9]} 37... b6 {[%clk 0:00:20.6]} 38. Rg1 {[%clk 0:00:50.2]} 38... Rf6
{[%clk 0:00:20.8]} 39. Ne4 {[%clk 0:00:48.8]} 39... Rxg1+ {[%clk 0:00:20.3]} 40.
Rxg1 {[%clk 0:00:49.7]} 40... Qxf5 {[%clk 0:00:21]} 41. Qb8+ {[%clk 0:00:48.1]}
41... Kf7 {[%clk 0:00:20.9]} 42. Qg8# {[%clk 0:00:48.6]} 1-0

[Event "*** SCC Grand Prix: Titled Tuesday Blitz"]
[Site "Chess.com"]
[Date "2020.09.29"]
[Round "2"]
[White "dianamirza"]
[Black "FM_VS99"]
[Result "0-1"]
[WhiteElo "1942"]
[BlackElo "2368"]
[TimeControl "180+1"]
[EndTime "10:16:41 PDT"]
[Termination "FM_VS99 won on time"]

1. d4 {[%clk 0:03:00.9]} 1... g6 {[%clk 0:03:00.9]} 2. e4 {[%clk 0:02:58.5]}
2... Bg7 {[%clk 0:03:01.3]} 3. f3 {[%clk 0:02:57.9]} 3... d6 {[%clk 0:03:01.3]}
4. Be3 {[%clk 0:02:58.3]} 4... c5 {[%clk 0:03:00.2]} 5. Ne2 {[%clk 0:02:55.9]}
5... Nc6 {[%clk 0:02:59.2]} 6. Nbc3 {[%clk 0:02:49.9]} 6... cxd4 {[%clk
0:02:58.1]} 7. Nxd4 {[%clk 0:02:49.8]} 7... Nf6 {[%clk 0:02:58.7]} 8. Nxc6
{[%clk 0:02:47.9]} 8... bxc6 {[%clk 0:02:58.6]} 9. Bc4 {[%clk 0:02:44.6]} 9...
O-O {[%clk 0:02:55.6]} 10. O-O {[%clk 0:02:44.4]} 10... Qc7 {[%clk 0:02:51.1]}
11. Qe2 {[%clk 0:02:39.3]} 11... Nd7 {[%clk 0:02:46.9]} 12. f4 {[%clk
0:02:27.2]} 12... a5 {[%clk 0:02:45.2]} 13. a4 {[%clk 0:02:26.1]} 13... Rb8
{[%clk 0:02:42.7]} 14. Rab1 {[%clk 0:02:16.9]} 14... Kh8 {[%clk 0:02:33.1]} 15.
f5 {[%clk 0:02:00.7]} 15... Ne5 {[%clk 0:02:31.2]} 16. fxg6 {[%clk 0:01:58]}
16... hxg6 {[%clk 0:02:28.2]} 17. Ba2 {[%clk 0:01:48.6]} 17... Ng4 {[%clk
0:02:20.9]} 18. Bxf7 {[%clk 0:01:27.8]} 18... Rxf7 {[%clk 0:02:05.1]} 19. Rxf7
{[%clk 0:01:24]} 19... Be6 {[%clk 0:02:05.7]} 20. Rxg7 {[%clk 0:00:54.5]} 20...
Kxg7 {[%clk 0:02:03.8]} 21. Bd4+ {[%clk 0:00:54.7]} 21... Kh7 {[%clk 0:01:47.9]}
22. h3 {[%clk 0:00:54]} 22... Nf6 {[%clk 0:01:45.4]} 23. Qf2 {[%clk 0:00:51.1]}
23... Rf8 {[%clk 0:01:42]} 24. Qh4+ {[%clk 0:00:50.5]} 24... Kg7 {[%clk
0:01:42]} 25. Rf1 {[%clk 0:00:46]} 25... Qd8 {[%clk 0:01:39.8]} 26. e5 {[%clk
0:00:41]} 26... dxe5 {[%clk 0:01:35.1]} 27. Bxe5 {[%clk 0:00:41.9]} 27... Qd2
{[%clk 0:01:33.2]} 28. Ne4 {[%clk 0:00:37.7]} 28... Qe3+ {[%clk 0:01:31.6]} 29.
Kh1 {[%clk 0:00:33.6]} 29... Bf5 {[%clk 0:01:31.7]} 30. Bxf6+ {[%clk 0:00:10.4]}
30... exf6 {[%clk 0:01:28.7]} 31. Ng3 {[%clk 0:00:08.4]} 31... Bxc2 {[%clk
0:01:23.3]} 32. Qg4 {[%clk 0:00:06.4]} 32... Kh6 {[%clk 0:00:59.7]} 33. Rf3
{[%clk 0:00:02.8]} 33... Qe1+ {[%clk 0:00:52.2]} 34. Kh2 {[%clk 0:00:02.9]}
34... f5 {[%clk 0:00:52.4]} 35. Qh4+ {[%clk 0:00:03.2]} 35... Kg7 {[%clk
0:00:52]} 36. Qg5 {[%clk 0:00:02.5]} 36... Qe5 {[%clk 0:00:47.5]} 0-1

[Event "*** SCC Grand Prix: Titled Tuesday Blitz"]
[Site "Chess.com"]
[Date "2020.09.29"]
[Round "2"]
[White "GiantThresher"]
[Black "Riptide27"]
[Result "0-1"]
[WhiteElo "2766"]
[BlackElo "2520"]
[TimeControl "180+1"]
[EndTime "10:16:42 PDT"]
[Termination "Riptide27 won by resignation"]

1. d4 {[%clk 0:03:00.9]} 1... d5 {[%clk 0:02:59.5]} 2. c4 {[%clk 0:03:00.9]}
2... e6 {[%clk 0:02:59.5]} 3. Nf3 {[%clk 0:03:00.6]} 3... Nf6 {[%clk 0:02:58.9]}
4. g3 {[%clk 0:03:01.1]} 4... dxc4 {[%clk 0:02:59.1]} 5. Bg2 {[%clk 0:03:01.1]}
5... c5 {[%clk 0:02:59.7]} 6. O-O {[%clk 0:02:16.5]} 6... Nc6 {[%clk 0:02:58.3]}
7. dxc5 {[%clk 0:02:11.6]} 7... Qxd1 {[%clk 0:02:57.6]} 8. Rxd1 {[%clk
0:02:12.5]} 8... Bxc5 {[%clk 0:02:58]} 9. Nc3 {[%clk 0:02:11.4]} 9... O-O {[%clk
0:02:53.4]} 10. Bg5 {[%clk 0:01:53.5]} 10... h6 {[%clk 0:02:10.7]} 11. Bxf6
{[%clk 0:01:41.7]} 11... gxf6 {[%clk 0:02:11.6]} 12. Nd2 {[%clk 0:01:42.1]}
12... Na5 {[%clk 0:02:10.8]} 13. Rac1 {[%clk 0:01:40.3]} 13... Be7 {[%clk
0:02:06.3]} 14. Nde4 {[%clk 0:01:19.4]} 14... Rb8 {[%clk 0:02:00.9]} 15. Nd6
{[%clk 0:01:10.1]} 15... Bxd6 {[%clk 0:01:40]} 16. Rxd6 {[%clk 0:01:11]} 16...
b5 {[%clk 0:01:40.2]} 17. Ne4 {[%clk 0:01:10]} 17... Kg7 {[%clk 0:01:39.8]} 18.
Nc5 {[%clk 0:01:09.7]} 18... Rb6 {[%clk 0:01:32.6]} 19. Rcd1 {[%clk 0:01:06.4]}
19... b4 {[%clk 0:01:24.7]} 20. f4 {[%clk 0:00:58]} 20... c3 {[%clk 0:01:18.4]}
21. bxc3 {[%clk 0:00:57.1]} 21... bxc3 {[%clk 0:01:19.3]} 22. Rxb6 {[%clk
0:00:51.1]} 22... axb6 {[%clk 0:01:18.6]} 23. Na4 {[%clk 0:00:52]} 23... c2
{[%clk 0:01:12]} 24. Rc1 {[%clk 0:00:52]} 24... Bd7 {[%clk 0:01:12.2]} 25. Nxb6
{[%clk 0:00:48]} 25... Rb8 {[%clk 0:01:11.5]} 26. Rxc2 {[%clk 0:00:28.2]} 26...
Rxb6 {[%clk 0:01:11.5]} 27. Kf2 {[%clk 0:00:29.1]} 27... Bc6 {[%clk 0:01:11.2]}
28. Bf1 {[%clk 0:00:29.2]} 28... Be4 {[%clk 0:01:08.9]} 29. Rc5 {[%clk
0:00:29.2]} 29... Nb7 {[%clk 0:01:07.3]} 30. Rc7 {[%clk 0:00:27]} 30... Nd6
{[%clk 0:01:06.4]} 31. Ke3 {[%clk 0:00:21.8]} 31... Ra6 {[%clk 0:01:06.4]} 32.
Rd7 {[%clk 0:00:19.7]} 32... f5 {[%clk 0:01:05.5]} 33. Kd4 {[%clk 0:00:14.8]}
33... Ra4+ {[%clk 0:01:01.4]} 34. Kc3 {[%clk 0:00:11.6]} 34... Ne8 {[%clk
0:00:52.1]} 35. e3 {[%clk 0:00:12]} 35... Nf6 {[%clk 0:00:50.8]} 36. Rd2 {[%clk
0:00:11.9]} 36... Nd5+ {[%clk 0:00:50.5]} 37. Kb3 {[%clk 0:00:11.1]} 37... Rb4+
{[%clk 0:00:50.7]} 38. Ka3 {[%clk 0:00:11.2]} 38... Rb8 {[%clk 0:00:45.9]} 0-1